fUSD/lending_fUSD_20260401
["ID","MTS","AMOUNT","RATE_DAILY","PERIOD"]
[419186703,1775010684876,-1524.0,0.00032999,7]
[419186704,1775010684886,-1524.0,0.00032999,7]
[419186705,1775010684895,-1524.0,0.00032999,7]
[419186706,1775010684904,-1524.0,0.00032999,7]
[419186707,1775010684914,-1524.0,0.00032999,7]
[419186708,1775010684923,-1524.0,0.00032999,7]
[419186709,1775010684933,-1524.0,0.00032999,7]
[419186710,1775010684943,-1524.0,0.00032999,7]
[419186711,1775010684951,-1524.0,0.00032999,7]
[419186712,1775010684961,-1524.0,0.00032999,7]
[419186713,1775010684970,-1524.0,0.00032999,7]
[419186714,1775010684979,-1524.0,0.00032999,7]
[419186715,1775010684988,-1524.0,0.00032999,7]
[419186716,1775010684997,-1524.0,0.00032999,7]
[419186717,1775010685007,-1524.0,0.00032999,7]
[419186718,1775010685016,-1524.0,0.00032999,7]
[419186719,1775010685026,-1524.0,0.00032999,7]
[419186720,1775010685035,-1524.0,0.00032999,7]
[419186721,1775010685044,-1524.0,0.00032999,7]
[419186722,1775010685054,-1524.0,0.00032999,7]
[419186723,1775010685063,-1524.0,0.00032999,7]
[419186724,1775010685073,-1524.0,0.00032999,7]
[419186725,1775010685082,-1524.0,0.00032999,7]
[419186726,1775010685091,-1524.0,0.00032999,7]
[419186727,1775010685100,-1524.0,0.00032999,7]
[419186728,1775010685109,-1524.0,0.00032999,7]
[419186729,1775010685119,-1524.0,0.00032999,7]
[419186730,1775010685128,-1524.0,0.00032999,7]
[419186731,1775010685137,-1524.0,0.00032999,7]
[419186732,1775010685146,-1524.0,0.00032999,7]
[419186733,1775010685156,-1218.00855651,0.00032999,7]
[419186734,1775010685165,-182.04987015,0.00032999,7]
[419186735,1775010685175,-360.83853,0.00032999,37]
[419186736,1775010685184,-360.83853,0.00032999,37]
[419186737,1775010685194,-360.83854,0.00032999,37]
[419186738,1775010685203,-360.83854,0.00032999,37]
[419186739,1775010685212,-4126.945995,0.00032999,7]
[419186740,1775010685222,-4126.945995,0.00032999,7]
[419186741,1775010685231,-4126.945995,0.00032999,7]
[419186742,1775010685240,-151.0,0.00032999,7]
[419186743,1775010685250,-151.0,0.00032999,7]
[419186744,1775010685259,-4126.945995,0.00032999,7]
[419186745,1775010685269,-151.0,0.00032999,7]
[419186746,1775010685278,-151.0,0.00032999,7]
[419186747,1775010685288,-262.000422,0.00032999,7]
[419186748,1775010685298,-302.093611,0.00032999,7]
[419186749,1775010685307,-151.0,0.00032999,7]
[419186750,1775010685316,-262.000422,0.00032999,7]
[419186751,1775010685325,-1002.143556,0.00032999,7]
[419186752,1775010685334,-839.001389,0.00032999,7]
[419186753,1775010685343,-151.0,0.00032999,7]
[419186754,1775010685352,-302.093611,0.00032999,7]
[419186755,1775010685362,-151.0,0.00032999,7]
[419186756,1775010685371,-151.0,0.00032999,7]
[419186757,1775010685380,-151.0,0.00032999,7]
[419186758,1775010685390,-262.000422,0.00032999,7]
[419186759,1775010685399,-1002.143556,0.00032999,7]
[419186760,1775010685408,-839.001389,0.00032999,7]
[419186761,1775010685417,-151.0,0.00032999,7]
[419186762,1775010685426,-302.093611,0.00032999,7]
[419186763,1775010685435,-1002.143556,0.00032999,7]
[419186764,1775010685445,-175.599481,0.00032999,7]
[419186765,1775010685455,-262.000422,0.00032999,7]
[419186766,1775010685464,-839.001389,0.00032999,7]
[419186767,1775010685474,-302.093611,0.00032999,7]
[419186768,1775010685483,-1002.143556,0.00032999,7]
[419186769,1775010685491,-175.599481,0.00032999,7]
[419186770,1775010685501,-273.873245,0.00032999,7]
[419186771,1775010685512,-237.755723,0.00032999,7]
[419186772,1775010685522,-839.001389,0.00032999,7]
[419186773,1775010685532,-485.818484,0.00032999,7]
[419186774,1775010685541,-175.599481,0.00032999,7]
[419186775,1775010685551,-2296.649879,0.00032999,7]
[419186776,1775010685560,-175.691598,0.00032999,7]
[419186777,1775010685570,-273.873245,0.00032999,7]
[419186778,1775010685579,-237.755723,0.00032999,7]
[419186779,1775010685589,-485.818484,0.00032999,7]
[419186780,1775010685599,-1163.182786,0.00032999,7]
[419186781,1775010685608,-170.636045,0.00032999,7]
[419186782,1775010685618,-175.599481,0.00032999,7]
[419186783,1775010685628,-2296.649879,0.00032999,7]
[419186784,1775010685638,-175.691598,0.00032999,7]
[419186785,1775010685647,-273.873245,0.00032999,7]
[419186786,1775010685656,-151.0,0.00032999,7]
[419186787,1775010685665,-237.755723,0.00032999,7]
[419186788,1775010685675,-485.818484,0.00032999,7]
[419186789,1775010685684,-1163.182786,0.00032999,7]
[419186790,1775010685694,-170.636045,0.00032999,7]
[419186791,1775010685703,-2296.649879,0.00032999,7]
[419186792,1775010685713,-196.147739,0.00032999,7]
[419186793,1775010685722,-273.873245,0.00032999,7]
[419186794,1775010685732,-175.691598,0.00032999,7]
[419186795,1775010685742,-237.755723,0.00032999,7]
[419186796,1775010685751,-151.0,0.00032999,7]
[419186797,1775010685762,-485.818484,0.00032999,7]
[419186798,1775010685771,-1163.182786,0.00032999,7]
[419186799,1775010685780,-170.636045,0.00032999,7]
[419186800,1775010685790,-2296.649879,0.00032999,7]
[419186801,1775010685800,-196.147739,0.00032999,7]
[419186802,1775010685810,-175.691598,0.00032999,7]
[419186803,1775010685819,-1163.182786,0.00032999,7]
[419186804,1775010685828,-170.636045,0.00032999,7]
[419186805,1775010685838,-151.0,0.00032999,7]
[419186806,1775010685847,-314.772131,0.00032999,7]
[419186807,1775010685856,-196.147739,0.00032999,7]
[419186808,1775010685866,-151.0,0.00032999,7]
[419186809,1775010685875,-314.772131,0.00032999,7]
[419186810,1775010685885,-196.147739,0.00032999,7]
[419186811,1775010685894,-206.472759,0.00032999,7]
[419186812,1775010685903,-560.669219,0.00032999,7]
[419186813,1775010685912,-205.425419,0.00032999,7]
[419186814,1775010685922,-557.258778,0.00032999,7]
[419186815,1775010685931,-314.772131,0.00032999,7]
[419186816,1775010685940,-206.472759,0.00032999,7]
[419186817,1775010685950,-560.669219,0.00032999,7]
[419186818,1775010685960,-3080.917359,0.00032999,7]
[419186819,1775010685969,-557.258778,0.00032999,7]
[419186820,1775010685978,-314.772131,0.00032999,7]
[419186821,1775010685988,-206.472759,0.00032999,7]
[419186822,1775010685997,-993.841162,0.00032999,7]
[419186823,1775010686007,-560.669219,0.00032999,7]
[419186824,1775010686018,-3080.917359,0.00032999,7]
[419186825,1775010686027,-178.645392,0.00032999,7]
[419186826,1775010686036,-557.258778,0.00032999,7]
[419186827,1775010686046,-206.472759,0.00032999,7]
[419186828,1775010686055,-993.841162,0.00032999,7]
[419186829,1775010686065,-178.645392,0.00032999,7]
[419186830,1775010686074,-560.669219,0.00032999,7]
[419186831,1775010686084,-3080.917359,0.00032999,7]
[419186832,1775010686092,-557.258778,0.00032999,7]
[419186833,1775010686102,-993.841162,0.00032999,7]
[419186834,1775010686111,-3080.917359,0.00032999,7]
[419186835,1775010686120,-178.645392,0.00032999,7]
[419186836,1775010686129,-993.841162,0.00032999,7]
[419186837,1775010686139,-178.645392,0.00032999,7]
[419186838,1775010686148,-151.0,0.00032999,7]
[419186839,1775010686159,-151.0,0.00032999,7]
[419186840,1775010686169,-151.0,0.00032999,7]
[419186841,1775010686179,-151.0,0.00032999,7]
[419186842,1775010686188,-151.0,0.00032999,7]
[419186843,1775010686197,-2349.593397,0.00032999,7]
[419186844,1775010686206,-2349.593397,0.00032999,7]
[419186845,1775010686217,-2349.593397,0.00032999,7]
[419186846,1775010686226,-162.921016,0.00032999,7]
[419186847,1775010686235,-873.524236,0.00032999,7]
[419186848,1775010686244,-2349.593397,0.00032999,7]
[419186849,1775010686254,-873.524236,0.00032999,7]
[419186850,1775010686264,-873.524236,0.00032999,7]
[419186851,1775010686274,-268.345093,0.00032999,7]
[419186852,1775010686284,-873.524236,0.00032999,7]
[419186853,1775010686293,-268.345093,0.00032999,7]
[419186854,1775010686303,-268.345093,0.00032999,7]
[419186855,1775010686312,-268.345093,0.00032999,7]
[419186856,1775010686322,-43715.12963077,0.00033,120]
[419186857,1775010686333,-174.44243556,0.00033,60]
[419186858,1775010686343,-211.81676653,0.00033,120]
[419186859,1775010686354,-473.79707038,0.00033,30]
[419186860,1775010686365,-5000.0,0.00033,120]
[419186861,1775010686375,-3000.0,0.00033,120]
[419186862,1775010686384,-3640.52,0.00033,7]
[419186863,1775010686395,-2041933.66439698,0.00033,120]
[419186864,1775010687736,-228.360261,0.00030137,7]
[419186865,1775010687746,-3982.7906202,0.00033,120]
[419186866,1775010687757,-1091.90743764,0.00033,120]
[419186867,1775010687769,-2722.87201863,0.00033,120]
[419186868,1775010687780,-435.52985745,0.00033,120]
[419186869,1775010687792,-694.44530909,0.00033,120]
[419186870,1775010690309,-657.78344267,0.00010319,2]
[419186871,1775010690319,-12.81598733,0.00010319,2]
[419186872,1775010690351,-644.96745534,0.00010319,2]
[419186873,1775010690361,-657.78344267,0.00010319,2]
[419186874,1775010690370,-657.78344267,0.00010319,2]
[419186875,1775010690380,-657.78344267,0.00010319,2]
[419186876,1775010690390,-657.78344267,0.00010319,2]
[419186877,1775010690400,-657.78344267,0.00010319,2]
[419186878,1775010690410,-657.78344267,0.00010319,2]
[419186879,1775010690421,-266.09676193,0.00010319,2]
[419186880,1775010690430,-244.66264196,0.00010319,2]
[419186881,1775010690443,-255.33735804,0.00010319,2]
[419186882,1775010690454,-500.0,0.00010319,2]
[419186883,1775010690463,-500.0,0.00010319,2]
[419186884,1775010690473,-657.78344267,0.00010319,2]
[419186885,1775010690483,-500.0,0.00010319,2]
[419186886,1775010690492,-500.0,0.00010319,2]
[419186887,1775010690502,-500.0,0.00010319,2]
[419186888,1775010690514,-500.0,0.00010319,2]
[419186889,1775010690523,-516.45149846,0.00010319,2]
[419186890,1775010690533,-500.0,0.00010319,2]
[419186891,1775010690545,-657.78344267,0.00010319,2]
[419186892,1775010690555,-500.0,0.00010319,2]
[419186893,1775010690565,-221.43152005,0.00010319,2]
[419186894,1775010690574,-500.0,0.00010319,2]
[419186895,1775010690584,-500.0,0.00010319,2]
[419186896,1775010690593,-500.0,0.00010319,2]
[419186897,1775010690603,-250.94733218,0.00010319,2]
[419186898,1775010690613,-657.78344267,0.00010319,2]
[419186899,1775010690623,-500.0,0.00010319,2]
[419186900,1775010690633,-409.12183899,0.00010319,2]
[419186901,1775010690643,-500.0,0.00010319,2]
[419186902,1775010690652,-657.78344267,0.00010319,2]
[419186903,1775010690662,-500.0,0.00010319,2]
[419186904,1775010690672,-500.0,0.00010319,2]
[419186905,1775010690683,-500.0,0.00010319,2]
[419186906,1775010690693,-657.78344267,0.00010319,2]
[419186907,1775010690703,-500.0,0.00010319,2]
[419186908,1775010690713,-500.0,0.00010319,2]
[419186909,1775010690724,-500.0,0.00010319,2]
[419186910,1775010690734,-500.0,0.00010319,2]
[419186911,1775010690745,-378.62402164,0.00010319,2]
[419186912,1775010690756,-657.78344267,0.00010319,2]
[419186913,1775010690770,-500.0,0.00010319,2]
[419186914,1775010690779,-500.0,0.00010319,2]
[419186915,1775010690789,-657.78344267,0.00010319,2]
[419186916,1775010690798,-500.0,0.00010319,2]
[419186917,1775010690807,-500.0,0.00010319,2]
[419186918,1775010690817,-500.0,0.00010319,2]
[419186919,1775010690826,-657.78344267,0.00010319,2]
[419186920,1775010690835,-500.0,0.00010319,2]
[419186921,1775010690846,-500.0,0.00010319,2]
[419186922,1775010690855,-507.37000497,0.00010319,2]
[419186923,1775010690864,-500.0,0.00010319,2]
[419186924,1775010690873,-657.78344267,0.00010319,2]
[419186925,1775010690883,-500.0,0.00010319,2]
[419186926,1775010690893,-657.78344267,0.00010319,2]
[419186927,1775010690903,-500.0,0.00010319,2]
[419186928,1775010690912,-657.78344267,0.00010319,2]
[419186929,1775010690922,-500.0,0.00010319,2]
[419186930,1775010690932,-657.78344267,0.00010319,2]
[419186931,1775010690942,-500.0,0.00010319,2]
[419186932,1775010690951,-657.78344267,0.00010319,2]
[419186933,1775010690960,-657.78344267,0.00010319,2]
[419186934,1775010690970,-500.0,0.00010319,2]
[419186935,1775010690980,-657.78344267,0.00010319,2]
[419186936,1775010690990,-657.78344267,0.00010319,2]
[419186937,1775010691000,-500.0,0.00010319,2]
[419186938,1775010691010,-500.0,0.00010319,2]
[419186939,1775010691023,-500.0,0.00010319,2]
[419186940,1775010691034,-500.0,0.00010319,2]
[419186941,1775010691043,-657.78344267,0.00010319,2]
[419186942,1775010691053,-657.78344267,0.00010319,2]
[419186943,1775010691063,-657.78344267,0.00010319,2]
[419186944,1775010691072,-657.78344267,0.00010319,2]
[419186945,1775010691082,-657.78344267,0.00010319,2]
[419186946,1775010691092,-657.78344267,0.00010319,2]
[419186947,1775010691101,-657.78344267,0.00010319,2]
[419186948,1775010691111,-657.78344267,0.00010319,2]
[419186949,1775010691120,-657.78344267,0.00010319,2]
[419186950,1775010691130,-657.78344267,0.00010319,2]
[419186951,1775010691139,-657.78344267,0.00010319,2]
[419186952,1775010691148,-657.78344267,0.00010319,2]
[419186953,1775010691157,-657.78344267,0.00010319,2]
[419186954,1775010691166,-657.78344267,0.00010319,2]
[419186955,1775010691175,-657.78344267,0.00010319,2]
[419186956,1775010691184,-657.78344267,0.00010319,2]
[419186957,1775010691193,-657.78344267,0.00010319,2]
[419186958,1775010691202,-657.78344267,0.00010319,2]
[419186959,1775010691212,-657.78344267,0.00010319,2]
[419186960,1775010691221,-657.78344267,0.00010319,2]
[419186961,1775010691230,-657.78344267,0.00010319,2]
[419186962,1775010691240,-657.78344267,0.00010319,2]
[419186963,1775010691249,-657.78344267,0.00010319,2]
[419186964,1775010691259,-657.78344267,0.00010319,2]
[419186965,1775010691271,-657.78344267,0.00010319,2]
[419186966,1775010691280,-657.78344267,0.00010319,2]
[419186967,1775010691290,-657.78344267,0.00010319,2]
[419186968,1775010691299,-657.78344267,0.00010319,2]
[419186969,1775010691308,-657.78344267,0.00010319,2]
[419186970,1775010691317,-657.78344267,0.00010319,2]
[419186971,1775010691327,-657.78344267,0.00010319,2]
[419186972,1775010691336,-657.78344267,0.00010319,2]
[419186973,1775010691345,-657.78344267,0.00010319,2]
[419186974,1775010691354,-657.78344267,0.00010319,2]
[419186975,1775010691363,-657.78344267,0.00010319,2]
[419186976,1775010691374,-657.78344267,0.00010319,2]
[419186977,1775010691383,-657.78344267,0.00010319,2]
[419186978,1775010691392,-657.78344267,0.00010319,2]
[419186979,1775010691402,-657.78344267,0.00010319,2]
[419186980,1775010691411,-657.78344267,0.00010319,2]
[419186981,1775010691421,-657.78344267,0.00010319,2]
[419186982,1775010691430,-657.78344267,0.00010319,2]
[419186983,1775010691440,-657.78344267,0.00010319,2]
[419186984,1775010691449,-657.78344267,0.00010319,2]
[419186985,1775010691459,-657.78344267,0.00010319,2]
[419186986,1775010691468,-657.78344267,0.00010319,2]
[419186987,1775010691477,-657.78344267,0.00010319,2]
[419186988,1775010691487,-657.78344267,0.00010319,2]
[419186989,1775010691496,-485.941108,0.00016,2]
[419186990,1775010691506,-174.943365,0.00016,2]
[419186991,1775010691516,-174.943365,0.00016,2]
[419186992,1775010691526,-2502.821982,0.000199,2]
[419186993,1775010691536,-485.941108,0.000199,2]
[419186994,1775010691546,-174.943365,0.000199,2]
[419186995,1775010691555,-1313.53875,0.000199,2]
[419186996,1775010691565,-825.0,0.0002,30]
[419186997,1775010691575,-2469.0,0.0002196,2]
[419186998,1775010691586,-2469.0,0.0002496,2]
[419186999,1775010691596,-1450.0,0.00028194,2]
[419187000,1775010691605,-389.70777833,0.00032876,2]
[419187001,1775010691616,-377.06347033,0.00032876,2]
[419187002,1775010691627,-434.346871,0.00032876,2]
[419187003,1775010691637,-500.0,0.00032876,2]
[419187004,1775010691647,-542.06933574,0.00032876,2]
[419187005,1775010691657,-657.78344267,0.00032876,2]
[419187006,1775010691667,-657.78344267,0.00032876,2]
[419187007,1775010691677,-657.78344267,0.00032876,2]
[419187008,1775010691687,-657.78344267,0.00032876,2]
[419187009,1775010691697,-657.78344267,0.00032876,2]
[419187010,1775010691707,-657.78344267,0.00032876,2]
[419187011,1775010691716,-228.360261,0.00032877,7]
[419187012,1775010691726,-2502.821982,0.00032877,7]
[419187013,1775010691736,-485.941108,0.00032877,7]
[419187014,1775010691746,-174.943365,0.00032877,7]
[419187015,1775010691755,-1313.53875,0.00032877,7]
[419187016,1775010691765,-6060194.36481942,0.00033,120]
[419187017,1775010692296,-657.78344267,0.00010319,2]
[419187018,1775010692307,-657.78344267,0.00010319,2]
[419187019,1775010692317,-657.78344267,0.00010319,2]
[419187020,1775010692326,-657.78344267,0.00010319,2]
[419187021,1775010692335,-657.78344267,0.00010319,2]
[419187022,1775010692345,-657.78344267,0.00010319,2]
[419187023,1775010692355,-657.78344267,0.00010319,2]
[419187024,1775010692364,-657.78344267,0.00010319,2]
[419187025,1775010692373,-657.78344267,0.00010319,2]
[419187026,1775010692382,-657.78344267,0.00010319,2]
[419187027,1775010692391,-657.78344267,0.00010319,2]
[419187028,1775010692401,-657.78344267,0.00010319,2]
[419187029,1775010692410,-657.78344267,0.00010319,2]
[419187030,1775010692419,-657.78344267,0.00010319,2]
[419187031,1775010692429,-657.78344267,0.00010319,2]
[419187032,1775010692438,-657.78344267,0.00010319,2]
[419187033,1775010692447,-657.78344267,0.00010319,2]
[419187034,1775010692456,-657.78344267,0.00010319,2]
[419187035,1775010692465,-657.78344267,0.00010319,2]
[419187036,1775010692475,-500.0,0.00010319,2]
[419187037,1775010692484,-2502.821982,0.00015999,2]
[419187038,1775010692494,-2502.821982,0.00016,2]
[419187039,1775010692505,-174.943365,0.000199,2]
[419187040,1775010692514,-2502.821982,0.000199,2]
[419187041,1775010692523,-825.0,0.00022439,30]
[419187042,1775010692532,-825.0,0.00024879,60]
[419187043,1775010692542,-825.0,0.00027318,60]
[419187044,1775010692551,-2469.0,0.0002796,2]
[419187045,1775010692560,-1450.0,0.00028194,2]
[419187046,1775010692570,-1420.0,0.00028194,2]
[419187047,1775010692580,-228.360261,0.00030137,7]
[419187048,1775010692590,-228.360261,0.00030137,7]
[419187049,1775010692600,-228.360261,0.00030137,7]
[419187050,1775010692611,-2469.0,0.0003096,2]
[419187051,1775010692620,-1450.0,0.00032303,2]
[419187052,1775010692631,-730.87049185,0.00032876,2]
[419187053,1775010692640,-730.87049185,0.00032876,2]
[419187054,1775010692650,-730.87049185,0.00032876,2]
[419187055,1775010692659,-174.943365,0.00032877,7]
[419187056,1775010692668,-228.360261,0.00032877,7]
[419187057,1775010692678,-35993.8179473,0.00033,120]
[419187058,1775010693108,-553.83763425,0.00013698,2]
[419187059,1775010693119,-500.0,0.00015,7]
[419187060,1775010693129,-66.20249573,0.00015999,2]
[419187061,1775010693147,-350.43540955,0.00015999,2]
[419187062,1775010693161,-2086.18407672,0.00015999,2]
[419187063,1775010693170,-151.0,0.00015999,2]
[419187064,1775010693181,-155.93758443,0.00016,2]
[419187065,1775010693193,-1345.837,0.00016,2]
[419187073,1775010938715,-1200.0,0.00010218,2]
[419187075,1775010961252,300.0,0.00010218,2]
[419187076,1775010962584,150.0,0.00010218,2]
[419187077,1775011021225,300.0,0.00010218,2]
[419187078,1775011041731,210.88264644,0.00010119,2]
[419187079,1775011081687,300.0,0.00010218,2]
[419187087,1775011141234,300.0,0.00010218,2]
[419187088,1775011142501,150.0,0.00010218,2]
[419187090,1775011201157,300.0,0.00010218,2]
[419187091,1775011211305,193.5060619,0.0001021,2]
[419187092,1775011287950,1484.04176349,0.00010016,2]
[419187093,1775011287977,466.584817,0.00010016,2]
[419187094,1775011288003,722.8955016,0.00010016,2]
[419187097,1775011384072,388.91,6.515e-05,2]
[419187098,1775011384268,388.91,6.858e-05,2]
[419187099,1775011384485,388.91,7.2e-05,2]
[419187100,1775011384686,388.91,7.543e-05,2]
[419187101,1775011384882,388.91,7.886e-05,2]
[419187102,1775011385306,388.91,8.229e-05,2]
[419187105,1775011750126,-388.91,8.572e-05,2]
[419187106,1775011750147,-250.0,8.572e-05,2]
[419187107,1775011750169,-273.0,8.572e-05,2]
[419187108,1775011750189,-203.5823905,8.891e-05,2]
[419187109,1775011831577,-100.13410524,8.891e-05,2]
[419187110,1775011831588,-277.0,8.891e-05,2]
[419187111,1775011831598,-388.91,8.915e-05,2]
[419187112,1775011831607,-210.88264644,9.197e-05,2]
[419187113,1775011831617,-150.0,9.197e-05,2]
[419187114,1775011831626,-150.0,9.197e-05,2]
[419187115,1775011831636,-150.0,9.197e-05,2]
[419187116,1775011831645,-150.0,9.197e-05,2]
[419187117,1775011831655,-150.0,9.197e-05,2]
[419187118,1775011831664,-150.0,9.197e-05,2]
[419187119,1775011831673,-388.91,9.258e-05,2]
[419187120,1775011831683,-447.84965556,9.429e-05,2]
[419187121,1775011831692,-87.28020424,9.429e-05,2]
[419187122,1775011831743,-162.71979576,9.429e-05,2]
[419187123,1775011831753,-740.84,9.488e-05,2]
[419187124,1775011831764,-150.0,9.6e-05,2]
[419187125,1775011831774,-388.91,9.601e-05,2]
[419187126,1775011831784,-300.0,9.648e-05,2]
[419187127,1775011831794,-681.60915775,9.649e-05,2]
[419187128,1775011831815,-254.14013485,9.649e-05,2]
[419187129,1775011831827,-365.5107074,9.649e-05,2]
[419187130,1775011831837,-4.47861259,9.649e-05,2]
[419187131,1775011831849,-382.22138741,9.649e-05,2]
[419187132,1775011831858,-1818.37,9.649e-05,2]
[419187133,1775011831868,-2011.96996227,9.78e-05,2]
[419187134,1775011831881,-1635.36487997,9.78e-05,2]
[419187135,1775011831894,-352.66515776,9.78e-05,2]
[419187136,1775011831903,-250.0,9.78e-05,2]
[419187137,1775011831912,-388.91,9.943e-05,2]
[419187138,1775011831923,-641.13439471,0.00010016,2]
[419187139,1775011831936,-1513.7985232,0.00010016,2]
[419187140,1775011831945,-236.673,0.00010016,2]
[419187141,1775011831955,-248.83420952,0.0001021,2]
[419187142,1775011831970,-150.0,0.00010213,2]
[419187143,1775011831979,-500.0,0.00010214,2]
[419187144,1775011831989,-367.07300447,0.00010214,2]
[419187145,1775011832000,-132.92699553,0.00010214,2]
[419187146,1775011832011,-200.0,0.00010214,2]
[419187147,1775011832020,-11.88300447,0.00010214,2]
[419187148,1775011832035,-488.11699553,0.00010214,2]
[419187149,1775011832044,-500.0,0.00010214,2]
[419187150,1775011832054,-178.88446447,0.00010214,2]
[419187151,1775011832070,-321.11553553,0.00010214,2]
[419187152,1775011832079,-400.85944213,0.00010214,2]
[419187153,1775011832089,-48.20010094,0.00010214,2]
[419187154,1775011832102,-102.79989906,0.00010214,2]
[419187155,1775011832112,-151.0,0.00010214,2]
[419187156,1775011832123,-4.07530094,0.00010214,2]
[419187157,1775011832141,-146.92469906,0.00010214,2]
[419187158,1775011832151,-151.0,0.00010214,2]
[419187159,1775011832162,-151.0,0.00010214,2]
[419187160,1775011832172,-151.0,0.00010214,2]
[419187161,1775011832183,-151.0,0.00010214,2]
[419187162,1775011832194,-151.0,0.00010214,2]
[419187163,1775011832205,-151.0,0.00010214,2]
[419187164,1775011832214,-151.0,0.00010214,2]
[419187165,1775011832224,-151.0,0.00010214,2]
[419187166,1775011832234,-151.0,0.00010214,2]
[419187167,1775011832246,-151.0,0.00010214,2]
[419187168,1775011832257,-8793.1410584,0.00010219,2]
[419187169,1775011832267,-2307.62,0.00010219,2]
[419187170,1775011832276,-500.0,0.00010219,2]
[419187171,1775011832286,-500.0,0.00010219,2]
[419187172,1775011832296,-500.0,0.00010219,2]
[419187173,1775011832306,-373.0414736,0.00010219,2]
[419187174,1775011832316,-500.0,0.00010219,2]
[419187175,1775011832327,-500.0,0.00010219,2]
[419187176,1775011832338,-500.0,0.00010219,2]
[419187177,1775011832347,-602.66496693,0.00010219,2]
[419187178,1775011832358,-500.0,0.00010219,2]
[419187179,1775011832368,-500.0,0.00010219,2]
[419187180,1775011832378,-500.0,0.00010219,2]
[419187181,1775011832388,-500.0,0.00010219,2]
[419187182,1775011832399,-500.0,0.00010219,2]
[419187183,1775011832409,-500.0,0.00010219,2]
[419187184,1775011832419,-500.0,0.00010219,2]
[419187185,1775011832429,-500.0,0.00010219,2]
[419187186,1775011832439,-271.25542243,0.00010219,2]
[419187187,1775011832450,-500.0,0.00010219,2]
[419187188,1775011832460,-500.0,0.00010219,2]
[419187189,1775011832476,-390.64227615,0.00010219,2]
[419187190,1775011832485,-500.0,0.00010219,2]
[419187191,1775011832495,-393.57123292,0.00010219,2]
[419187192,1775011832504,-500.0,0.00010219,2]
[419187193,1775011832513,-500.0,0.00010219,2]
[419187194,1775011832523,-500.0,0.00010219,2]
[419187195,1775011832532,-160.7762282,0.00010219,2]
[419187196,1775011832542,-500.0,0.00010219,2]
[419187197,1775011832552,-500.0,0.00010219,2]
[419187198,1775011832562,-500.0,0.00010219,2]
[419187199,1775011832573,-500.0,0.00010219,2]
[419187200,1775011832584,-150.0,0.00010219,2]
[419187201,1775011832596,-150.0,0.00010219,2]
[419187202,1775011832605,-150.0,0.00010219,2]
[419187203,1775011832616,-150.0,0.00010219,2]
[419187204,1775011832626,-150.0,0.00010219,2]
[419187205,1775011832637,-150.0,0.00010219,2]
[419187206,1775011832648,-150.0,0.00010219,2]
[419187207,1775011832658,-150.0,0.00010219,2]
[419187208,1775011832668,-500.0,0.00010219,2]
[419187209,1775011832679,-500.0,0.00010219,2]
[419187210,1775011832688,-500.0,0.00010219,2]
[419187211,1775011832698,-500.0,0.00010219,2]
[419187212,1775011832708,-500.0,0.00010219,2]
[419187213,1775011832718,-500.0,0.00010219,2]
[419187214,1775011832728,-500.0,0.00010219,2]
[419187215,1775011832738,-201.74725138,0.00010219,2]
[419187216,1775011832748,-178.12602111,0.00010219,2]
[419187217,1775011832758,-150.0,0.00010219,2]
[419187218,1775011832769,-150.0,0.00010219,2]
[419187219,1775011832779,-150.0,0.00010219,2]
[419187220,1775011832790,-150.0,0.00010219,2]
[419187221,1775011832800,-150.0,0.00010219,2]
[419187222,1775011832810,-172268.58219988,0.0001022,2]